[Event "XII Sabadell Open 2019"]
[Site "Sabadell"]
[Date "2019.09.09"]
[Round "8.6"]
[White "Martinez Romero, Martin"]
[Black "Vergara Jofre, Felipe"]
[Result "1-0"]
[ECO "B31"]
[WhiteElo "2421"]
[BlackElo "2343"]
[Annotator "RC"]
[PlyCount "95"]
[EventDate "2019.09.01"]
[EventCountry "ESP"]
[SourceTitle "playchess.com"]
[Source "ChessBase"]
[SourceQuality "1"]
[TimeControl "5400+30"]

1. e4 {[%emt 0:06:39]} c5 {[%emt 0:00:00]} 2. Nf3 {[%emt 0:00:04]} Nc6 {[%emt 0:00:00]} 3. Bb5 {[%emt 0:00:35]} Nf6 {[%emt 0:00:00]} 4. e5 {[%emt 0:00:30]} Ng4 {[%emt 0:00:29]} 5. Bxc6 {[%emt 0:01:03]} dxc6 {[%emt 0:00:04]} 6. O-O {[%emt 0:00:47]} g6 {[%emt 0:00:08]} 7. d3 {[%emt 0:01:16]} Bg7 {[%emt 0:00:15]} 8. Re1 {[%emt 0:00:31]} O-O {[%emt 0:06:48]} 9. Qe2 {[%emt 0:03:43]} Nh6 {[%emt 0:03:17]} 10. h3 {[%emt 0:05:45]} Nf5 {[%emt 0:02:51]} 11. Nbd2 {[%emt 0:00:25]} Nd4 {[%emt 0:05:30]} 12. Nxd4 {[%emt 0:00:41]} cxd4 {[%emt 0:00:02]} 13. Nf3 {[%emt 0:01:44]} Qd5 {[%emt 0:07:45]} 14. Bf4 {[%emt 0:06:37]} c5 {[%emt 0:05:00]} 15. a4 {[%emt 0:00:00]} Bd7 {[%emt 0:02:23]} 16. Nd2 {[%emt 0:01:20]} Bc6 {[%emt 0:00:00]} 17. f3 {[%emt 0:00:12]} h6 {[%emt 0:15:49]} 18. b3 {[%emt 0:01:59]} Kh7 {[%emt 0:05:56]} 19. Qf2 {[%emt 0:01:31]} g5 {[%emt 0:01:51]} 20. Bh2 {[%emt 0:00:14]} f5 {[%emt 0:00:34]} 21. exf6 {[%emt 0:00:12]} exf6 {[%emt 0:00:44]} 22. Nc4 {[%emt 0:00:46]} f5 {[%emt 0:02:35]} 23. Be5 {[%emt 0:01:07]} Rfe8 {[%emt 0:06:08]} 24. Bxg7 {[%emt 0:01:04]} Kxg7 {[%emt 0:00:01]} 25. Rxe8 {[%emt 0:00:12]} Rxe8 {[%emt 0:00:20]} 26. Re1 {[%emt 0:00:04]} Rxe1+ {[%emt 0:03:32]} 27. Qxe1 {[%emt 0:04:49]} Kf6 {[%emt 0:00:01]} 28. Qa5 {[%emt 0:09:44]} g4 {[%emt 0:08:43]} 29. Qd2 {[%emt 0:00:00]} Kg7 {[%emt 0:01:28]} 30. hxg4 {[%emt 0:00:52]} fxg4 {[%emt 0:00:06]} 31. fxg4 {[%emt 0:13:25]} Bd7 {[%emt 0:07:02]} 32. Qf4 {[%emt 0:00:00]} Qg5 {[%emt 0:11:24]} 33. Qc7 {[%emt 0:00:00]} Qxg4 {[%emt 0:00:35]} 34. Qxb7 {[%emt 0:08:10]} Kf6 {[%emt 0:03:02]} 35. Qd5 {[%emt 0:00:00]} Qd1+ {[%emt 0:01:44]} 36. Kh2 {[%emt 0:00:00]} Qg4 {[%emt 0:00:18]} 37. Qe5+ {[%emt 0:00:00]} Kg6 {[%emt 0:00:39]} 38. Qd6+ {[%emt 0:00:00]} Kh7 {[%emt 0:02:46]} 39. Nd2 {[%emt 0:00:00]} Qh5+ {[%emt 0:00:00]} 40. Kg1 {[%emt 0:00:00]} Bg4 {[%emt 0:00:00]} 41. Ne4 {[%emt 0:00:00]} Qh4 {[%emt 0:00:06]} 42. g3 {[%emt 0:01:42]} Qh3 {[%emt 0:00:01]} 43. Qe7+ {[%emt 0:01:45]} Kg6 {[%emt 0:00:48]} 44. Qe8+ {[%emt 0:01:49]} Kg7 {[%emt 0:00:24]} 45. Qe5+ {[%emt 0:00:15]} Kg6 {[%emt 0:00:15]} 46. Nf2 {[%emt 0:01:47]} Qh5 {[%emt 0:00:01]} 47. Qe4+ {[%emt 0:00:13]} Bf5 {[%emt 0:00:43]} 48. g4 {[%emt 0:00:28]} 1-0

[Event "XII Sabadell Open 2019"]
[Site "Sabadell"]
[Date "2019.09.09"]
[Round "8.12"]
[White "Navajas Alvarez, Josep"]
[Black "Bedoya Rosales, Luis"]
[Result "1/2-1/2"]
[ECO "E61"]
[WhiteElo "1731"]
[BlackElo "1918"]
[Annotator "NA RC"]
[PlyCount "74"]
[EventDate "2019.09.01"]
[EventCountry "ESP"]
[SourceTitle "playchess.com"]
[Source "ChessBase"]
[SourceQuality "1"]
[TimeControl "5400+30"]

1. c4 {[%emt 0:08:17]} Nf6 {[%emt 0:10:07]} 2. Nc3 {[%emt 0:00:00]} g6 {[%emt 0:00:16]} 3. g3 {[%emt 0:00:00]} Bg7 {[%emt 0:00:02]} 4. Bg2 {[%emt 0:00:00]} O-O {[%emt 0:00:05]} 5. e3 {[%emt 0:04:15]} d6 {[%emt 0:08:27]} 6. Nge2 {[%emt 0:00:00]} e5 {[%emt 0:00:42]} 7. O-O {[%emt 0:00:00]} c6 {[%emt 0:00:14]} 8. d4 {[%emt 0:00:00]} Be6 {[%emt 0:08:26]} 9. b3 {[%emt 0:19:54]} Qa5 {[%emt 0:05:05]} 10. Bb2 {[%emt 0:00:00]} Na6 {[%emt 0:06:05]} 11. Rc1 {[%emt 0:14:10]} Rac8 {[%emt 0:04:40]} 12. e4 {[%emt 0:07:47]} Bg4 {[%emt 0:00:23]} 13. f3 {[%emt 0:00:00]} Be6 {[%emt 0:07:31]} 14. Qd2 {[%emt 0:14:47]} Kh8 {[%emt 0:28:21]} 15. Kh1 {[%emt 0:00:00]} Ng8 {[%emt 0:10:57]} 16. f4 {[%emt 0:05:31]} f6 {[%emt 0:04:57]} 17. Ba1 {[%emt 0:08:18]} Rcd8 {[%emt 0:02:10]} 18. Rcd1 {[%emt 0:06:27]} Bc8 {[%emt 0:00:00]} 19. d5 {[%emt 0:00:00]} c5 {[%emt 0:02:57]} 20. Nb5 {[%emt 0:00:25]} Qxd2 {[%emt 0:00:00]} 21. Rxd2 {[%emt 0:00:00]} Nb4 {[%emt 0:00:00]} 22. Nxa7 {[%emt 0:00:00]} Bd7 {[%emt 0:00:00]} 23. a4 {[%emt 0:00:00]} Ne7 {[%emt 0:00:00]} 24. fxe5 {[%emt 0:00:00]} fxe5 {[%emt 0:00:00]} 25. Bc3 {[%emt 0:00:00]} Na6 {[%emt 0:00:12]} 26. Nb5 {[%emt 0:00:00]} Nc8 {[%emt 0:02:39]} 27. h3 {[%emt 0:00:00]} Rxf1+ {[%emt 0:00:00]} 28. Bxf1 {[%emt 0:00:19]} Rf8 {[%emt 0:01:45]} 29. Rd1 {[%emt 0:00:00]} Bh6 {[%emt 0:00:00]} 30. Bg2 {[%emt 0:00:00]} Kg8 {[%emt 0:02:05]} 31. Bd2 {[%emt 0:00:00]} Bxd2 {[%emt 0:00:00]} 32. Rxd2 {[%emt 0:00:00]} Rf6 {[%emt 0:00:00]} 33. Nec3 {[%emt 0:00:00]} Kf8 {[%emt 0:00:00]} 34. Kg1 {[%emt 0:00:00]} Ke7 {[%emt 0:01:46]} 35. Rf2 {[%emt 0:00:00]} Rxf2 {[%emt 0:00:00]} 36. Kxf2 {[%emt 0:00:00]} Nb4 {[%emt 0:00:00]} 37. Ke2 {[%emt 0:00:00]} b6 {[%emt 0:01:43]} 1/2-1/2

[Event "XII Sabadell Open 2019"]
[Site "Sabadell"]
[Date "2019.09.09"]
[Round "8.13"]
[White "Garcia Gil, Oriol"]
[Black "Fernandez Aguilar, Francisco"]
[Result "0-1"]
[ECO "C90"]
[WhiteElo "1629"]
[BlackElo "2040"]
[Annotator "NA RC"]
[PlyCount "64"]
[EventDate "2019.09.01"]
[EventCountry "ESP"]
[SourceTitle "playchess.com"]
[Source "ChessBase"]
[SourceQuality "1"]
[TimeControl "5400+30"]

1. e4 {[%emt 0:00:01]} e5 {[%emt 0:00:30]} 2. Nf3 {[%emt 0:00:07]} Nc6 {[%emt 0:00:04]} 3. Bb5 {[%emt 0:00:04]} a6 {[%emt 0:00:16]} 4. Ba4 {[%emt 0:00:05]} Nf6 {[%emt 0:00:15]} 5. d3 {[%emt 0:00:07]} b5 {[%emt 0:00:05]} 6. Bb3 {[%emt 0:00:04]} Be7 {[%emt 0:00:08]} 7. O-O {[%emt 0:00:49]} d6 {[%emt 0:00:08]} 8. c3 Na5 {[%emt 0:00:14]} 9. Bc2 {[%emt 0:00:07]} c5 {[%emt 0:00:18]} 10. Re1 {[%emt 0:01:15]} Nc6 {[%emt 0:00:58]} 11. Nbd2 {[%emt 0:00:31]} O-O {[%emt 0:00:07]} 12. Nf1 {[%emt 0:00:18]} h6 {[%emt 0:01:25]} 13. Ng3 {[%emt 0:00:03]} Be6 {[%emt 0:05:38]} 14. h3 {[%emt 0:00:55]} Re8 {[%emt 0:02:01]} 15. Be3 {[%emt 0:02:48]} d5 {[%emt 0:01:08]} 16. d4 {[%emt 0:07:00]} cxd4 {[%emt 0:01:25]} 17. cxd4 {[%emt 0:00:10]} exd4 {[%emt 0:03:40]} 18. Nxd4 {[%emt 0:00:33]} Nxd4 {[%emt 0:00:05]} 19. Bxd4 {[%emt 0:06:58]} dxe4 {[%emt 0:00:27]} 20. Nxe4 {[%emt 0:00:44]} Nxe4 {[%emt 0:01:18]} 21. Bxe4 {[%emt 0:11:25]} Rc8 {[%emt 0:11:56]} 22. b3 {[%emt 0:22:36]} Bb4 {[%emt 0:08:14]} 23. Re3 {[%emt 0:03:30]} Qh4 {[%emt 0:16:43]} 24. Bf3 {[%emt 0:16:03]} Red8 {[%emt 0:00:03]} 25. Re4 {[%emt 0:01:31]} Qg5 {[%emt 0:05:15]} 26. h4 {[%emt 0:04:47]} Qg6 {[%emt 0:10:20]} 27. Qe2 {[%emt 0:06:36]} Bf5 {[%emt 0:03:30]} 28. Rf4 {[%emt 0:03:19]} Bd6 {[%emt 0:02:27]} 29. Rxf5 {[%emt 0:02:23]} Qxf5 {[%emt 0:00:13]} 30. Bg4 {[%emt 0:04:13]} Qf4 {[%emt 0:00:53]} 31. g3 {[%emt 0:00:47]} Qxd4 {[%emt 0:00:06]} 32. Rd1 {[%emt 0:01:10]} Qe5 {[%emt 0:00:36]} 0-1

[Event "XII Sabadell Open 2019"]
[Site "Sabadell"]
[Date "2019.09.09"]
[Round "8.14"]
[White "Navajas Alvarez, Antoni"]
[Black "Alcon Davalos, Marc"]
[Result "1/2-1/2"]
[ECO "C54"]
[WhiteElo "1512"]
[BlackElo "1459"]
[Annotator "NA RC"]
[PlyCount "98"]
[EventDate "2019.09.01"]
[EventCountry "ESP"]
[SourceTitle "playchess.com"]
[Source "ChessBase"]
[SourceQuality "1"]
[TimeControl "5400+30"]

1. e4 {[%emt 0:00:00]} e5 {[%emt 0:00:00]} 2. Nf3 {[%emt 0:00:00]} Nc6 {[%emt 0:00:16]} 3. Bc4 {[%emt 0:01:29]} Bc5 {[%emt 0:01:36]} 4. c3 {[%emt 0:00:06]} Nf6 {[%emt 0:00:22]} 5. d3 {[%emt 0:00:31]} d6 {[%emt 0:01:02]} 6. Nbd2 {[%emt 0:02:04]} Be6 {[%emt 0:01:30]} 7. Bxe6 {[%emt 0:00:00]} fxe6 {[%emt 0:00:14]} 8. Nf1 {[%emt 0:00:30]} Qe7 {[%emt 0:02:29]} 9. Ng3 {[%emt 0:00:18]} h6 {[%emt 0:05:54]} 10. b4 {[%emt 0:05:21]} Bb6 {[%emt 0:07:29]} 11. a4 {[%emt 0:07:24]} a6 {[%emt 0:00:00]} 12. O-O {[%emt 0:00:53]} O-O {[%emt 0:00:00]} 13. h3 {[%emt 0:02:11]} Kh7 {[%emt 0:00:00]} 14. Be3 {[%emt 0:00:59]} Qf7 {[%emt 0:04:52]} 15. Qd2 {[%emt 0:05:57]} Ne7 {[%emt 0:00:00]} 16. d4 {[%emt 0:07:30]} exd4 {[%emt 0:00:00]} 17. cxd4 {[%emt 0:02:23]} Nh5 {[%emt 0:00:59]} 18. Nxh5 {[%emt 0:00:00]} Qxh5 {[%emt 0:00:09]} 19. Nh2 {[%emt 0:06:32]} Rf7 {[%emt 0:07:02]} 20. Ng4 {[%emt 0:01:18]} Raf8 {[%emt 0:00:00]} 21. Rab1 {[%emt 0:02:04]} Ng8 {[%emt 0:02:08]} 22. b5 {[%emt 0:06:43]} a5 {[%emt 0:04:30]} 23. Rbc1 {[%emt 0:06:31]} Nf6 {[%emt 0:00:30]} 24. Nxf6+ {[%emt 0:00:00]} gxf6 {[%emt 0:01:34]} 25. Kh2 {[%emt 0:00:08]} Rg8 {[%emt 0:01:51]} 26. f3 {[%emt 0:04:48]} Qg6 {[%emt 0:04:23]} 27. g4 {[%emt 0:04:10]} f5 {[%emt 0:05:12]} 28. exf5 {[%emt 0:00:00]} exf5 {[%emt 0:02:59]} 29. Rf2 {[%emt 0:03:29]} Qf6 {[%emt 0:01:45]} 30. Rff1 {[%emt 0:03:59]} f4 {[%emt 0:00:56]} 31. Bf2 {[%emt 0:03:10]} d5 {[%emt 0:02:25]} 32. Rfe1 {[%emt 0:00:00]} c6 {[%emt 0:04:30]} 33. bxc6 {[%emt 0:00:00]} bxc6 {[%emt 0:00:06]} 34. Re5 {[%emt 0:01:09]} Bc7 {[%emt 0:00:35]} 35. Rf5 {[%emt 0:00:00]} Qe6 {[%emt 0:00:40]} 36. Rxf7+ {[%emt 0:00:00]} Qxf7 {[%emt 0:00:50]} 37. Rxc6 {[%emt 0:00:36]} Rg7 {[%emt 0:00:30]} 38. Qd3+ {[%emt 0:00:00]} Rg6 {[%emt 0:01:44]} 39. Rxg6 {[%emt 0:01:47]} Qxg6 {[%emt 0:00:10]} 40. Qxg6+ {[%emt 0:00:00]} Kxg6 {[%emt 0:00:09]} 41. h4 {[%emt 0:00:32]} Bd8 {[%emt 0:02:07]} 42. Kh3 {[%emt 0:00:00]} Bf6 {[%emt 0:00:39]} 43. h5+ {[%emt 0:03:32]} Kg7 {[%emt 0:01:28]} 44. Kg2 {[%emt 0:00:00]} Kf7 {[%emt 0:00:16]} 45. Kf1 {[%emt 0:00:00]} Ke6 {[%emt 0:00:16]} 46. Ke2 {[%emt 0:01:11]} Bd8 {[%emt 0:03:12]} 47. Kd3 {[%emt 0:00:00]} Be7 {[%emt 0:00:43]} 48. Be1 {[%emt 0:00:00]} Bd8 {[%emt 0:00:14]} 49. Bd2 {[%emt 0:00:09]} Bc7 {[%emt 0:00:41]} 1/2-1/2

[Event "XII Sabadell Open 2019"]
[Site "Sabadell"]
[Date "2019.09.09"]
[Round "8.15"]
[White "Tortosa Moros, Joan"]
[Black "Menendez Cabrera, Enric"]
[Result "1-0"]
[ECO "B01"]
[WhiteElo "1647"]
[BlackElo "1558"]
[Annotator "NA RC"]
[PlyCount "99"]
[EventDate "2019.09.01"]
[EventCountry "ESP"]
[SourceTitle "playchess.com"]
[Source "ChessBase"]
[SourceQuality "1"]
[TimeControl "5400+30"]

1. e4 {[%emt 0:00:29]} d5 {[%emt 0:01:18]} 2. exd5 {[%emt 0:00:13]} Qxd5 {[%emt 0:00:04]} 3. Nc3 {[%emt 0:00:06]} Qd8 {[%emt 0:00:12]} 4. d4 {[%emt 0:00:20]} c6 {[%emt 0:00:08]} 5. Be2 {[%emt 0:01:03]} Nf6 {[%emt 0:00:18]} 6. Nf3 {[%emt 0:00:45]} h6 {[%emt 0:00:08]} 7. O-O {[%emt 0:00:18]} e6 {[%emt 0:00:16]} 8. h3 {[%emt 0:04:03]} Bd6 {[%emt 0:00:27]} 9. Be3 {[%emt 0:00:08]} O-O {[%emt 0:00:44]} 10. Qd2 {[%emt 0:02:14]} Nbd7 {[%emt 0:02:47]} 11. Bd3 {[%emt 0:01:51]} Re8 {[%emt 0:06:18]} 12. Rfe1 {[%emt 0:00:07]} Bf8 {[%emt 0:00:38]} 13. Bf4 {[%emt 0:03:15]} b5 {[%emt 0:09:49]} 14. Ne4 {[%emt 0:02:09]} Nxe4 {[%emt 0:01:07]} 15. Bxe4 {[%emt 0:00:26]} Bb7 {[%emt 0:03:35]} 16. Rad1 {[%emt 0:02:23]} Nf6 {[%emt 0:01:20]} 17. Bd3 {[%emt 0:01:59]} a6 {[%emt 0:05:06]} 18. c3 {[%emt 0:03:01]} Rc8 {[%emt 0:03:49]} 19. Be5 {[%emt 0:01:10]} c5 {[%emt 0:02:02]} 20. Qf4 {[%emt 0:07:58]} Nh5 {[%emt 0:01:52]} 21. Qg4 {[%emt 0:00:44]} Bxf3 {[%emt 0:00:26]} 22. Qxf3 {[%emt 0:00:32]} Qg5 {[%emt 0:04:08]} 23. Be2 {[%emt 0:02:05]} Nf6 {[%emt 0:00:37]} 24. Bxf6 {[%emt 0:00:26]} Qxf6 {[%emt 0:01:00]} 25. Qxf6 {[%emt 0:00:28]} gxf6 {[%emt 0:00:09]} 26. dxc5 {[%emt 0:00:41]} Rxc5 {[%emt 0:00:34]} 27. Rd7 {[%emt 0:02:18]} a5 {[%emt 0:04:09]} 28. Rb7 {[%emt 0:00:26]} b4 {[%emt 0:02:04]} 29. cxb4 {[%emt 0:00:06]} Re5 {[%emt 0:00:27]} 30. bxa5 {[%emt 0:01:50]} Rxa5 {[%emt 0:00:32]} 31. a3 {[%emt 0:00:59]} Rd8 {[%emt 0:00:53]} 32. Rd1 {[%emt 0:01:35]} Rxd1+ {[%emt 0:02:23]} 33. Bxd1 {[%emt 0:01:01]} Rd5 {[%emt 0:00:29]} 34. Bf3 {[%emt 0:00:24]} Ra5 {[%emt 0:01:22]} 35. Kf1 {[%emt 0:01:24]} Bd6 {[%emt 0:04:18]} 36. g4 {[%emt 0:00:30]} Be5 {[%emt 0:00:28]} 37. Bd1 {[%emt 0:07:00]} Rc5 {[%emt 0:01:21]} 38. b4 {[%emt 0:01:36]} Rc3 {[%emt 0:00:22]} 39. a4 {[%emt 0:00:39]} Rxh3 {[%emt 0:01:57]} 40. Rd7 {[%emt 0:01:39]} Rc3 {[%emt 0:00:11]} 41. b5 {[%emt 0:01:01]} Ra3 {[%emt 0:00:27]} 42. b6 {[%emt 0:00:29]} Ra1 {[%emt 0:00:13]} 43. Kg2 {[%emt 0:04:04]} Kg7 {[%emt 0:00:27]} 44. b7 {[%emt 0:00:04]} Rb1 {[%emt 0:00:34]} 45. Bf3 {[%emt 0:00:25]} Rb6 {[%emt 0:00:52]} 46. Rd8 {[%emt 0:01:06]} Ra6 {[%emt 0:01:51]} 47. Ra8 {[%emt 0:00:01]} Rb6 {[%emt 0:00:31]} 48. a5 {[%emt 0:00:19]} Rb4 {[%emt 0:00:49]} 49. a6 {[%emt 0:00:23]} Ra4 {[%emt 0:00:55]} 50. a7 {[%emt 0:00:28]} 1-0

[Event "XII Sabadell Open 2019"]
[Site "Sabadell"]
[Date "2019.09.10"]
[Round "9.1"]
[White "Moskalenko, Viktor"]
[Black "Diaz Camallonga, Carles"]
[Result "1/2-1/2"]
[ECO "D31"]
[WhiteElo "2475"]
[BlackElo "2440"]
[Annotator "ChessBase"]
[PlyCount "66"]
[EventDate "2019.09.01"]
[EventCountry "ESP"]
[SourceTitle "playchess.com"]
[Source "ChessBase"]
[SourceQuality "1"]
[TimeControl "5400+30"]

1. d4 {[%emt 0:02:42]} e6 {[%emt 0:00:00]} 2. c4 {[%emt 0:00:08]} d5 {[%emt 0:00:00]} 3. Nc3 {[%emt 0:00:12]} c6 {[%emt 0:08:19]} 4. cxd5 {[%emt 0:14:51]} exd5 {[%emt 0:00:00]} 5. Qc2 {[%emt 0:00:08]} Ne7 {[%emt 0:11:38]} 6. Bf4 {[%emt 0:06:12]} Bf5 {[%emt 0:00:00]} 7. Qd2 {[%emt 0:00:17]} Nd7 {[%emt 0:00:00]} 8. e3 {[%emt 0:09:04]} Ng6 {[%emt 0:00:00]} 9. Bg3 {[%emt 0:00:00]} Nf6 {[%emt 0:00:00]} 10. f3 {[%emt 0:02:30]} h5 {[%emt 0:06:43]} 11. Bd3 {[%emt 0:00:57]} Bxd3 {[%emt 0:00:00]} 12. Qxd3 {[%emt 0:00:59]} h4 {[%emt 0:02:14]} 13. Bf2 {[%emt 0:03:08]} Bd6 {[%emt 0:00:16]} 14. Nge2 {[%emt 0:11:09]} Qd7 {[%emt 0:05:16]} 15. O-O-O {[%emt 0:03:53]} O-O-O {[%emt 0:00:19]} 16. Kb1 {[%emt 0:02:36]} Kb8 {[%emt 0:01:40]} 17. Qc2 {[%emt 0:03:43]} Qc7 {[%emt 0:02:34]} 18. h3 {[%emt 0:00:49]} Nh5 {[%emt 0:01:24]} 19. Na4 {[%emt 0:08:55]} Rhe8 {[%emt 0:02:20]} 20. Rd3 {[%emt 0:03:04]} Rc8 {[%emt 0:08:48]} 21. Rb3 {[%emt 0:01:55]} Qe7 {[%emt 0:01:52]} 22. Nc5 {[%emt 0:01:35]} Bxc5 {[%emt 0:05:28]} 23. Qxc5 {[%emt 0:03:38]} Qxc5 {[%emt 0:01:43]} 24. dxc5 {[%emt 0:00:01]} f5 {[%emt 0:01:16]} 25. Nd4 {[%emt 0:08:01]} f4 {[%emt 0:03:26]} 26. exf4 {[%emt 0:09:12]} Ngxf4 {[%emt 0:01:34]} 27. Bxh4 {[%emt 0:01:02]} Nxg2 {[%emt 0:00:30]} 28. Bg5 {[%emt 0:00:11]} g6 {[%emt 0:00:40]} 29. Rg1 {[%emt 0:00:38]} Ngf4 {[%emt 0:00:13]} 30. h4 {[%emt 0:01:05]} Ne6 {[%emt 0:00:13]} 31. Nxe6 {[%emt 0:01:24]} Rxe6 {[%emt 0:00:55]} 32. a4 {[%emt 0:00:55]} Rce8 {[%emt 0:00:00]} 33. Rg4 {[%emt 0:00:12]} Rf8 {[%emt 0:00:27]} 1/2-1/2

[Event "XII Sabadell Open 2019"]
[Site "Sabadell"]
[Date "2019.09.10"]
[Round "9.12"]
[White "Fernandez Aguilar, Francisco"]
[Black "Navajas Alvarez, Josep"]
[Result "1-0"]
[ECO "D78"]
[WhiteElo "2040"]
[BlackElo "1731"]
[Annotator "NA RC"]
[PlyCount "165"]
[EventDate "2019.09.01"]
[EventCountry "ESP"]
[SourceTitle "playchess.com"]
[Source "ChessBase"]
[SourceQuality "1"]
[TimeControl "5400+30"]

1. Nf3 {[%emt 0:00:00]} Nf6 {[%emt 0:00:00]} 2. g3 {[%emt 0:00:00]} g6 {[%emt 0:00:19]} 3. Bg2 {[%emt 0:00:00]} Bg7 {[%emt 0:00:06]} 4. O-O {[%emt 0:00:00]} O-O {[%emt 0:00:06]} 5. d4 {[%emt 0:00:00]} d5 {[%emt 0:01:02]} 6. c4 {[%emt 0:00:40]} c6 {[%emt 0:00:35]} 7. Qb3 {[%emt 0:00:31]} Qb6 {[%emt 0:00:58]} 8. Nc3 {[%emt 0:00:12]} dxc4 {[%emt 0:01:47]} 9. Qxc4 {[%emt 0:00:57]} Be6 {[%emt 0:01:07]} 10. Qa4 {[%emt 0:02:17]} h6 {[%emt 0:09:43] D78: Fianchetto Grünfeld: 6 0-0 c6} (10... Na6 11. Rd1 Rfd8 12. h3 c5 13. dxc5 Nxc5 14. Rxd8+ Rxd8 15. Qa3 Nfe4 16. Be3 Nxc3 17. bxc3 Rc8 18. Ng5 Qc7 19. Qxa7 {1-0 (27) Wojtaszek,R (2705)-Melkumyan,H (2615) Warsaw 2011}) 11. e4 {[%emt 0:05:49]} Rd8 {[%emt 0:01:31]} 12. h3 {[%emt 0:02:32]} Nbd7 {[%emt 0:03:33]} 13. Qc2 $146 {[%emt 0:10:40]} ({Predecessor:} 13. Rd1 a5 14. Qc2 Qa6 15. Ne2 a4 16. Re1 Bc4 17. Nc3 b5 18. Nd2 {1-0 (92) Juhasz,K (2272)-Ngo Tan,D (2141) Budapest 2011}) 13... Rac8 {[%emt 0:03:14]} 14. Be3 {[%emt 0:01:01]} Qa5 {[%emt 0:12:29]} 15. Qe2 {[%emt 0:31:13]} Nb6 {[%emt 0:00:00]} 16. Nd2 {[%emt 0:03:50]} Na4 {[%emt 0:03:06]} 17. Nb3 {[%emt 0:02:48]} Nxc3 {[%emt 0:00:00]} 18. bxc3 {[%emt 0:04:17]} Qxc3 {[%emt 0:08:11]} 19. Rfc1 {[%emt 0:04:23]} Qb4 {[%emt 0:04:05]} 20. Nc5 {[%emt 0:08:33]} Qb5 {[%emt 0:10:03]} 21. Qc2 {[%emt 0:03:45]} b6 {[%emt 0:20:29]} 22. Rab1 {[%emt 0:01:56]} Qc4 {[%emt 0:00:18]} 23. Qxc4 {[%emt 0:03:11]} Bxc4 {[%emt 0:00:07]} 24. Rxc4 {[%emt 0:00:21]} bxc5 {[%emt 0:00:55]} 25. Rxc5 {[%emt 0:01:07]} Nd7 {[%emt 0:02:45]} 26. Rc2 {[%emt 0:01:37]} Nb6 {[%emt 0:03:14]} 27. e5 {[%emt 0:04:42]} c5 {[%emt 0:01:17]} 28. dxc5 {[%emt 0:00:13]} Bxe5 {[%emt 0:03:01]} 29. Rbc1 {[%emt 0:06:10]} Nd5 {[%emt 0:03:20]} 30. Bxd5 {[%emt 0:00:00]} Rxd5 {[%emt 0:00:10]} 31. c6 {[%emt 0:00:00]} Rc7 {[%emt 0:01:52]} 32. Bxh6 {[%emt 0:00:00]} f6 {[%emt 0:02:13]} 33. Be3 {[%emt 0:00:00]} Rd8 {[%emt 0:01:33]} 34. Kg2 {[%emt 0:00:28]} Rdc8 {[%emt 0:00:47]} 35. Bd2 {[%emt 0:00:11]} Bd4 {[%emt 0:01:40]} 36. Ba5 {[%emt 0:00:46]} Bb6 {[%emt 0:00:00]} 37. Bxb6 {[%emt 0:00:23]} axb6 {[%emt 0:00:00]} 38. h4 {[%emt 0:00:08]} Kf7 {[%emt 0:00:00]} 39. g4 {[%emt 0:00:27]} Ke6 {[%emt 0:00:23]} 40. Re2+ {[%emt 0:01:35]} Kf7 {[%emt 0:00:19]} 41. Rec2 {[%emt 0:00:19]} Ke6 {[%emt 0:00:05]} 42. Kg3 {[%emt 0:00:25]} Kf7 {[%emt 0:00:36]} 43. Rc3 {[%emt 0:00:36]} Kg7 {[%emt 0:01:05]} 44. R1c2 {[%emt 0:00:11]} Kf7 {[%emt 0:00:19]} 45. Kf3 {[%emt 0:00:03]} e6 {[%emt 0:00:23]} 46. Ke4 {[%emt 0:00:48]} Ke7 {[%emt 0:00:15]} 47. Kf3 {[%emt 0:00:57]} Kf7 {[%emt 0:00:22]} 48. Kg3 {[%emt 0:00:04]} Kg7 {[%emt 0:00:06]} 49. f4 {[%emt 0:00:11]} Kf7 {[%emt 0:00:11]} 50. Kf2 {[%emt 0:01:53]} Ke7 {[%emt 0:00:08]} 51. Kg2 {[%emt 0:01:14]} Kf7 {[%emt 0:00:34]} 52. Kh3 {[%emt 0:01:19]} Kg7 {[%emt 0:00:09]} 53. Rc1 {[%emt 0:00:26]} Kf7 {[%emt 0:00:12]} 54. Rc4 {[%emt 0:00:55]} Ke7 {[%emt 0:00:11]} 55. Kg2 {[%emt 0:00:02]} Kf7 {[%emt 0:00:06]} 56. R1c3 {[%emt 0:00:31]} Kg7 {[%emt 0:00:20]} 57. a4 {[%emt 0:00:58]} Kf7 {[%emt 0:00:15]} 58. Kg3 {[%emt 0:00:21]} Kg7 {[%emt 0:00:03]} 59. Kf3 {[%emt 0:00:04]} Kf7 {[%emt 0:00:03]} 60. Rc2 {[%emt 0:00:33]} Ke7 {[%emt 0:00:11]} 61. Rc1 {[%emt 0:00:17]} Kf7 {[%emt 0:00:04]} 62. g5 {[%emt 0:00:43]} f5 {[%emt 0:00:54]} 63. R1c3 {[%emt 0:00:31]} Ke8 {[%emt 0:00:51]} 64. Re3 {[%emt 0:00:37]} Kf7 {[%emt 0:00:19]} 65. Rec3 {[%emt 0:00:07]} Ke8 {[%emt 0:00:16]} 66. Kg3 {[%emt 0:00:16]} Kf7 {[%emt 0:00:05]} 67. Rc2 {[%emt 0:00:08]} Ke8 {[%emt 0:00:26]} 68. h5 {[%emt 0:00:47]} (68. Kf2 $142) 68... gxh5 {[%emt 0:00:51]} 69. Kh4 {[%emt 0:00:09]} Kf7 {[%emt 0:00:04]} 70. Kg3 {[%emt 0:01:14]} (70. R2c3 $16) 70... Ke7 {[%emt 0:00:41]} 71. Kf3 {[%emt 0:00:34]} Kf7 {[%emt 0:00:08]} 72. Ke3 {[%emt 0:00:29]} Ke7 {[%emt 0:00:06]} 73. Ke2 {[%emt 0:01:03]} Ke8 {[%emt 0:00:24]} 74. R2c3 {[%emt 0:00:10]} Kf8 {[%emt 0:00:35]} (74... h4 $11 {keeps the balance.}) 75. Kd2 {[%emt 0:00:48]} Ke8 $2 {[%emt 0:00:14] [#]} (75... h4 $11 {and Black is okay.}) 76. Kc2 $1 {[%emt 0:00:17]} Ke7 {[%emt 0:00:27]} 77. Kb3 {[%emt 0:00:36]} Kd6 $2 {[%emt 0:01:03]} (77... Ra8 78. Rb4 Ra6) 78. Rd3+ {[%emt 0:00:01]} Ke7 {[%emt 0:00:16]} 79. Rdc3 {[%emt 0:00:24]} Kd6 {[%emt 0:00:04]} 80. Kb4 {[%emt 0:05:23]} h4 {[%emt 0:04:40]} 81. Kb5 {[%emt 0:00:00]} Rh7 {[%emt 0:03:51]} 82. Rd4+ {[%emt 0:00:00]} Kc7 {[%emt 0:00:11]} 83. Rd7+ {[%emt 0:00:00]} 1-0